[Event "January 2 Late 2024"]
[Site "https://www.chess.com"]
[Date "2024.01.02"]
[Round "2"]
[White "Reinecke, Katharina"]
[Black "Perossa, Nicolas"]
[Result "1/2-1/2"]
[Board "236"]
[TimeControl "180+1"]
[WhiteFideId "12929727"]
[BlackFideId "2850520"]
[WhiteElo "2017"]
[BlackElo "2420"]
[WhiteTeam "GER"]
[BlackTeam "ITA"]
[WhiteClock "0:00:10"]
[BlackClock "0:00:05"]

1. d4 {[%clk 0:02:58]}  Nf6 {[%clk 0:02:54]} 2. Nf3 {[%clk 0:02:56]}  d6 {[%clk 0:02:53]} 3. c4 {[%clk 0:02:55]}  Bg4 {[%clk 0:02:49]} 4. g3 {[%clk 0:02:52]}  Bxf3 {[%clk 0:02:48]} 5. exf3 {[%clk 0:02:52]}  g6 {[%clk 0:02:44]} 6. Bg2 {[%clk 0:02:51]}  Bg7 {[%clk 0:02:45]} 7. O-O {[%clk 0:02:51]}  O-O {[%clk 0:02:46]} 8. Nc3 {[%clk 0:02:50]}  Nc6 {[%clk 0:02:43]} 9. Be3 {[%clk 0:02:37]}  e5 {[%clk 0:02:17]} 10. d5 {[%clk 0:02:33]}  Ne7 {[%clk 0:02:13]} 11. f4 {[%clk 0:02:26]}  Nf5 {[%clk 0:02:08]} 12. fxe5 {[%clk 0:02:17]}  Nxe3 {[%clk 0:02:08]} 13. fxe3 {[%clk 0:02:16]}  dxe5 {[%clk 0:02:03]} 14. Qe2 {[%clk 0:01:56]}  Qd7 {[%clk 0:02:00]} 15. Rad1 {[%clk 0:01:53]}  Rae8 {[%clk 0:01:57]} 16. a3 {[%clk 0:01:49]}  h5 {[%clk 0:01:50]} 17. b4 {[%clk 0:01:47]}  Ng4 {[%clk 0:01:45]} 18. c5 {[%clk 0:01:41]}  f5 {[%clk 0:01:42]} 19. d6 {[%clk 0:01:36]}  c6 {[%clk 0:01:33]} 20. b5 {[%clk 0:01:28]}  e4 {[%clk 0:01:32]} 21. h3 {[%clk 0:01:03]}  Ne5 {[%clk 0:01:28]} 22. bxc6 {[%clk 0:00:47]}  Qxc6 {[%clk 0:01:26]} 23. Nd5 {[%clk 0:00:32]}  Qxc5 {[%clk 0:01:13]} 24. Nc7 {[%clk 0:00:30]}  Nd3 {[%clk 0:01:04]} 25. Nxe8 {[%clk 0:00:26]}  Rxe8 {[%clk 0:01:05]} 26. Rxd3 {[%clk 0:00:22]}  exd3 {[%clk 0:01:03]} 27. Qxd3 {[%clk 0:00:20]}  Kh7 {[%clk 0:00:38]} 28. Re1 {[%clk 0:00:18]}  Re6 {[%clk 0:00:21]} 29. d7 {[%clk 0:00:18]}  Bf6 {[%clk 0:00:11]} 30. d8=Q {[%clk 0:00:17]}  Bxd8 {[%clk 0:00:11]} 31. Qxd8 {[%clk 0:00:17]}  Rxe3 {[%clk 0:00:10]} 32. Rxe3 {[%clk 0:00:16]}  Qxe3+ {[%clk 0:00:11]} 33. Kh2 {[%clk 0:00:17]}  Qxa3 {[%clk 0:00:10]} 34. Qd7+ {[%clk 0:00:16]}  Kh6 {[%clk 0:00:09]} 35. Qxb7 {[%clk 0:00:16]}  Qc5 {[%clk 0:00:06]} 36. Qa8 {[%clk 0:00:14]}  Kg7 {[%clk 0:00:03]} 37. Qb7+ {[%clk 0:00:13]}  Kh6 {[%clk 0:00:03]} 38. Qa8 {[%clk 0:00:12]}  Kg7 {[%clk 0:00:03]} 39. Qb7+ {[%clk 0:00:12]}  Kf6 {[%clk 0:00:04]} 40. Qh7 {[%clk 0:00:11]}  Qb6 {[%clk 0:00:02]} 41. Qh8+ {[%clk 0:00:10]}  Kf7 {[%clk 0:00:02]} 42. Qh7+ {[%clk 0:00:11]}  Kf8 {[%clk 0:00:02]} 43. Qh8+ {[%clk 0:00:10]}  Ke7 {[%clk 0:00:02]} 44. Qg7+ {[%clk 0:00:10]}  Kd8 {[%clk 0:00:02]} 45. Qf8+ {[%clk 0:00:09]}  Kd7 {[%clk 0:00:02]} 46. Qf7+ {[%clk 0:00:09]}  Kc8 {[%clk 0:00:03]} 47. Qe8+ {[%clk 0:00:09]}  Kc7 {[%clk 0:00:03]} 48. Qe7+ {[%clk 0:00:09]}  Kc8 {[%clk 0:00:04]} 49. Qe8+ {[%clk 0:00:10]}  Kc7 {[%clk 0:00:05]} 50. Qe7+ {[%clk 0:00:10]}  Kc8 {[%clk 0:00:05]} 51. Qe8+ {[%clk 0:00:10]} 1/2-1/2

[Event "January 2 Late 2024"]
[Site "https://www.chess.com"]
[Date "2024.01.02"]
[Round "2"]
[White "Dmitriev, Sergey"]
[Black "Rees, Ioan"]
[Result "0-1"]
[Board "238"]
[TimeControl "180+1"]
[WhiteFideId "14101785"]
[BlackFideId "1801236"]
[WhiteElo "1986"]
[BlackElo "2418"]
[WhiteTeam "UKR"]
[BlackTeam "WLS"]
[WhiteClock "0:00:24"]
[BlackClock "0:00:54"]

1. e4 {[%clk 0:02:58]}  c6 {[%clk 0:03:00]} 2. Nf3 {[%clk 0:02:58]}  d5 {[%clk 0:02:58]} 3. exd5 {[%clk 0:02:57]}  cxd5 {[%clk 0:02:58]} 4. d4 {[%clk 0:02:57]}  Nc6 {[%clk 0:02:57]} 5. Bb5 {[%clk 0:02:52]}  Bg4 {[%clk 0:02:55]} 6. O-O {[%clk 0:02:48]}  e6 {[%clk 0:02:53]} 7. Re1 {[%clk 0:02:43]}  Bd6 {[%clk 0:02:51]} 8. c3 {[%clk 0:02:39]}  Ne7 {[%clk 0:02:44]} 9. Bg5 {[%clk 0:02:34]}  Qc7 {[%clk 0:02:38]} 10. h3 {[%clk 0:02:22]}  Bh5 {[%clk 0:02:16]} 11. Nbd2 {[%clk 0:02:15]}  O-O {[%clk 0:02:14]} 12. Bd3 {[%clk 0:01:57]}  Rae8 {[%clk 0:02:08]} 13. Qb1 {[%clk 0:01:51]}  Bg6 {[%clk 0:02:07]} 14. Nh4 {[%clk 0:01:43]}  Bxd3 {[%clk 0:02:06]} 15. Qxd3 {[%clk 0:01:42]}  Bh2+ {[%clk 0:01:59]} 16. Kf1 {[%clk 0:01:41]}  Bf4 {[%clk 0:01:59]} 17. Nhf3 {[%clk 0:01:32]}  Bxg5 {[%clk 0:01:49]} 18. Nxg5 {[%clk 0:01:31]}  Ng6 {[%clk 0:01:49]} 19. Qe3 {[%clk 0:01:14]}  b5 {[%clk 0:01:44]} 20. Ngf3 {[%clk 0:01:11]}  b4 {[%clk 0:01:39]} 21. Nb3 {[%clk 0:01:09]}  f6 {[%clk 0:01:18]} 22. Nc5 {[%clk 0:01:05]}  e5 {[%clk 0:01:17]} 23. Qd2 {[%clk 0:00:59]}  e4 {[%clk 0:01:11]} 24. Nh2 {[%clk 0:00:59]}  bxc3 {[%clk 0:01:07]} 25. bxc3 {[%clk 0:00:58]}  Qxh2 {[%clk 0:01:07]} 26. Ke2 {[%clk 0:00:53]}  Qxg2 {[%clk 0:01:06]} 27. Rg1 {[%clk 0:00:50]}  Qf3+ {[%clk 0:01:04]} 28. Ke1 {[%clk 0:00:51]}  e3 {[%clk 0:01:03]} 29. Qd1 {[%clk 0:00:34]}  exf2+ {[%clk 0:01:01]} 30. Kf1 {[%clk 0:00:32]}  fxg1=Q+ {[%clk 0:00:57]} 31. Kxg1 {[%clk 0:00:32]}  Qg3+ {[%clk 0:00:58]} 32. Kf1 {[%clk 0:00:31]}  Qxh3+ {[%clk 0:00:58]} 33. Kg1 {[%clk 0:00:31]}  Qg3+ {[%clk 0:00:57]} 34. Kf1 {[%clk 0:00:30]}  Nf4 {[%clk 0:00:56]} 35. Qd2 {[%clk 0:00:24]}  Re2 {[%clk 0:00:54]} 0-1

[Event "January 2 Late 2024"]
[Site "https://www.chess.com"]
[Date "2024.01.02"]
[Round "2"]
[White "Desideri, Ricardo Maruchi"]
[Black "Mazurkiewicz, Michal"]
[Result "0-1"]
[Board "241"]
[TimeControl "180+1"]
[WhiteFideId "2110440"]
[BlackFideId "1124943"]
[WhiteElo "1976"]
[BlackElo "2413"]
[WhiteTeam "BRA"]
[BlackTeam "POL"]
[WhiteClock "0:00:09"]
[BlackClock "0:02:20"]

1. e4 {[%clk 0:03:00]}  d6 {[%clk 0:02:59]} 2. d4 {[%clk 0:02:59]}  Nf6 {[%clk 0:03:00]} 3. Nc3 {[%clk 0:02:59]}  c6 {[%clk 0:03:00]} 4. Bg5 {[%clk 0:02:59]}  Nbd7 {[%clk 0:02:59]} 5. g4 {[%clk 0:02:56]}  b5 {[%clk 0:02:58]} 6. a3 {[%clk 0:02:46]}  e5 {[%clk 0:02:57]} 7. f3 {[%clk 0:02:28]}  Be7 {[%clk 0:02:57]} 8. Nge2 {[%clk 0:02:24]}  h6 {[%clk 0:02:56]} 9. Bh4 {[%clk 0:02:21]}  Nxe4 {[%clk 0:02:51]} 10. Bxe7 {[%clk 0:02:14]}  Nxc3 {[%clk 0:02:51]} 11. Nxc3 {[%clk 0:01:26]}  Qxe7 {[%clk 0:02:50]} 12. d5 {[%clk 0:01:16]}  Qh4+ {[%clk 0:02:47]} 13. Ke2 {[%clk 0:01:12]}  O-O {[%clk 0:02:34]} 14. dxc6 {[%clk 0:01:11]}  Nf6 {[%clk 0:02:32]} 15. Qxd6 {[%clk 0:00:54]}  e4 {[%clk 0:02:28]} 16. Rd1 {[%clk 0:00:17]}  exf3+ {[%clk 0:02:22]} 17. Kd2 {[%clk 0:00:09]}  Qg5+ {[%clk 0:02:20]} 0-1

[Event "January 2 Late 2024"]
[Site "https://www.chess.com"]
[Date "2024.01.02"]
[Round "2"]
[White "Burke, Paul"]
[Black "Filipovic, Slobodan J"]
[Result "0-1"]
[Board "242"]
[TimeControl "180+1"]
[WhiteFideId "2605767"]
[BlackFideId "939633"]
[WhiteElo "1921"]
[BlackElo "2412"]
[WhiteTeam "CAN"]
[BlackTeam "SRB"]
[WhiteClock "0:00:18"]
[BlackClock "0:01:02"]

1. e4 {[%clk 0:03:00]}  c5 {[%clk 0:02:59]} 2. Nf3 {[%clk 0:03:00]}  Nc6 {[%clk 0:03:00]} 3. d4 {[%clk 0:03:00]}  cxd4 {[%clk 0:03:01]} 4. c3 {[%clk 0:03:00]}  e5 {[%clk 0:03:01]} 5. Bc4 {[%clk 0:02:59]}  Nf6 {[%clk 0:02:59]} 6. O-O {[%clk 0:02:56]}  Be7 {[%clk 0:02:50]} 7. cxd4 {[%clk 0:02:53]}  d6 {[%clk 0:02:48]} 8. dxe5 {[%clk 0:02:49]}  dxe5 {[%clk 0:02:44]} 9. Qxd8+ {[%clk 0:02:49]}  Bxd8 {[%clk 0:02:45]} 10. Bb5 {[%clk 0:02:44]}  Bc7 {[%clk 0:02:44]} 11. Bxc6+ {[%clk 0:02:42]}  bxc6 {[%clk 0:02:44]} 12. Nc3 {[%clk 0:02:39]}  Bg4 {[%clk 0:02:37]} 13. Nd2 {[%clk 0:02:23]}  O-O-O {[%clk 0:02:32]} 14. h3 {[%clk 0:02:22]}  Bh5 {[%clk 0:02:30]} 15. Nc4 {[%clk 0:02:13]}  Rd4 {[%clk 0:02:25]} 16. b3 {[%clk 0:01:59]}  Nxe4 {[%clk 0:02:23]} 17. Nxe4 {[%clk 0:01:49]}  Rxe4 {[%clk 0:02:22]} 18. f3 {[%clk 0:01:47]}  Re2 {[%clk 0:02:19]} 19. Rf2 {[%clk 0:01:43]}  Rxf2 {[%clk 0:02:11]} 20. Kxf2 {[%clk 0:01:44]}  Rd8 {[%clk 0:02:10]} 21. Be3 {[%clk 0:01:42]}  Kb7 {[%clk 0:02:09]} 22. Re1 {[%clk 0:01:35]}  f6 {[%clk 0:02:07]} 23. Re2 {[%clk 0:01:35]}  Bf7 {[%clk 0:02:06]} 24. Nb2 {[%clk 0:01:34]}  Bb6 {[%clk 0:01:59]} 25. Na4 {[%clk 0:01:31]}  Rd5 {[%clk 0:01:48]} 26. Nc3 {[%clk 0:01:23]}  Rd3 {[%clk 0:01:46]} 27. Bxb6 {[%clk 0:01:07]}  axb6 {[%clk 0:01:47]} 28. Rc2 {[%clk 0:00:59]}  Bg6 {[%clk 0:01:44]} 29. Ne4 {[%clk 0:00:59]}  c5 {[%clk 0:01:33]} 30. Re2 {[%clk 0:00:52]}  Kc6 {[%clk 0:01:28]} 31. Nd2 {[%clk 0:00:51]}  Bf7 {[%clk 0:01:26]} 32. Ne4 {[%clk 0:00:51]}  Bd5 {[%clk 0:01:25]} 33. Ng3 {[%clk 0:00:50]}  g6 {[%clk 0:01:24]} 34. Nf1 {[%clk 0:00:49]}  b5 {[%clk 0:01:21]} 35. Ne3 {[%clk 0:00:48]}  Be6 {[%clk 0:01:21]} 36. Nc2 {[%clk 0:00:46]}  b4 {[%clk 0:01:20]} 37. Ne3 {[%clk 0:00:38]}  Bd5 {[%clk 0:01:20]} 38. Ng4 {[%clk 0:00:37]}  c4 {[%clk 0:01:10]} 39. bxc4 {[%clk 0:00:35]}  Bxc4 {[%clk 0:01:10]} 40. Rc2 {[%clk 0:00:34]}  Kb5 {[%clk 0:01:07]} 41. Nxf6 {[%clk 0:00:34]}  Ra3 {[%clk 0:01:07]} 42. Ne4 {[%clk 0:00:32]}  Rxa2 {[%clk 0:01:05]} 43. Nd6+ {[%clk 0:00:27]}  Kc5 {[%clk 0:01:01]} 44. Ne4+ {[%clk 0:00:24]}  Kd4 {[%clk 0:01:01]} 45. Rxa2 {[%clk 0:00:21]}  Bxa2 {[%clk 0:01:01]} 46. Ke2 {[%clk 0:00:21]}  b3 {[%clk 0:01:01]} 47. Kd2 {[%clk 0:00:20]}  b2 {[%clk 0:01:01]} 48. Nc3 {[%clk 0:00:20]}  b1=Q {[%clk 0:01:01]} 49. Nxb1 {[%clk 0:00:18]}  Bxb1 {[%clk 0:01:02]} 0-1

[Event "January 2 Late 2024"]
[Site "https://www.chess.com"]
[Date "2024.01.02"]
[Round "2"]
[White "Awoki, Daniel Teidi"]
[Black "Vargas, Mauricio"]
[Result "1-0"]
[Board "245"]
[TimeControl "180+1"]
[WhiteFideId "2100827"]
[BlackFideId "4404572"]
[WhiteElo "2403"]
[BlackElo "1839"]
[WhiteTeam "BRA"]
[BlackTeam "COL"]
[WhiteClock "0:01:45"]
[BlackClock "0:00:00"]

1. d4 {[%clk 0:03:00]}  d5 {[%clk 0:02:59]} 2. Nf3 {[%clk 0:03:01]}  c6 {[%clk 0:02:58]} 3. g3 {[%clk 0:03:02]}  f5 {[%clk 0:02:55]} 4. Bg2 {[%clk 0:03:03]}  e6 {[%clk 0:02:55]} 5. O-O {[%clk 0:03:03]}  Bd6 {[%clk 0:02:56]} 6. b3 {[%clk 0:03:00]}  Nf6 {[%clk 0:02:56]} 7. Bb2 {[%clk 0:02:59]}  O-O {[%clk 0:02:56]} 8. c4 {[%clk 0:03:00]}  Nbd7 {[%clk 0:02:54]} 9. Ne5 {[%clk 0:03:00]}  Qe8 {[%clk 0:02:41]} 10. Nd2 {[%clk 0:02:56]}  Bc7 {[%clk 0:02:25]} 11. f3 {[%clk 0:02:56]}  c5 {[%clk 0:02:03]} 12. e4 {[%clk 0:02:54]}  Bb6 {[%clk 0:01:52]} 13. dxc5 {[%clk 0:02:45]}  Bxc5+ {[%clk 0:01:45]} 14. Kh1 {[%clk 0:02:45]}  Nxe5 {[%clk 0:00:47]} 15. Bxe5 {[%clk 0:02:46]}  Qg6 {[%clk 0:00:40]} 16. cxd5 {[%clk 0:02:33]}  exd5 {[%clk 0:00:38]} 17. exd5 {[%clk 0:02:28]}  Rd8 {[%clk 0:00:20]} 18. Qc2 {[%clk 0:02:19]}  Bb6 {[%clk 0:00:17]} 19. d6 {[%clk 0:02:18]}  Nd7 {[%clk 0:00:10]} 20. Nc4 {[%clk 0:02:13]}  Nxe5 {[%clk 0:00:09]} 21. Nxe5 {[%clk 0:02:13]}  Rxd6 {[%clk 0:00:07]} 22. f4 {[%clk 0:02:06]}  Be6 {[%clk 0:00:06]} 23. Rad1 {[%clk 0:02:04]}  Rc8 {[%clk 0:00:05]} 24. Qb2 {[%clk 0:01:47]}  Qh5 {[%clk 0:00:00]} 25. Rxd6 {[%clk 0:01:45]} 1-0

[Event "January 2 Late 2024"]
[Site "https://www.chess.com"]
[Date "2024.01.02"]
[Round "2"]
[White "Rego, Pedro Filipe"]
[Black "Anna20240"]
[Result "1-0"]
[Board "246"]
[TimeControl "180+1"]
[WhiteFideId "1904310"]
[WhiteElo "2403"]
[BlackElo "1748"]
[WhiteTeam "POR"]
[WhiteClock "0:00:29"]
[BlackClock "0:00:00"]

1. e4 {[%clk 0:03:00]}  c6 {[%clk 0:02:58]} 2. d4 {[%clk 0:02:55]}  d5 {[%clk 0:02:58]} 3. e5 {[%clk 0:02:55]}  c5 {[%clk 0:02:57]} 4. dxc5 {[%clk 0:02:52]}  e6 {[%clk 0:02:56]} 5. Nf3 {[%clk 0:02:52]}  Bxc5 {[%clk 0:02:53]} 6. Be2 {[%clk 0:02:49]}  Nc6 {[%clk 0:02:44]} 7. c3 {[%clk 0:02:48]}  a6 {[%clk 0:02:28]} 8. O-O {[%clk 0:02:36]}  Nge7 {[%clk 0:02:27]} 9. Bf4 {[%clk 0:02:08]}  Ng6 {[%clk 0:02:26]} 10. Bg3 {[%clk 0:02:08]}  O-O {[%clk 0:02:05]} 11. Re1 {[%clk 0:02:04]}  Bb6 {[%clk 0:01:53]} 12. Nbd2 {[%clk 0:01:58]}  Bc7 {[%clk 0:01:52]} 13. Bd3 {[%clk 0:01:56]}  b5 {[%clk 0:01:37]} 14. a4 {[%clk 0:01:54]}  b4 {[%clk 0:01:25]} 15. Qe2 {[%clk 0:01:52]}  a5 {[%clk 0:01:17]} 16. c4 {[%clk 0:01:46]}  Ba6 {[%clk 0:01:14]} 17. b3 {[%clk 0:01:44]}  dxc4 {[%clk 0:01:07]} 18. Bxc4 {[%clk 0:01:38]}  Bxc4 {[%clk 0:01:03]} 19. Nxc4 {[%clk 0:01:39]}  Nd4 {[%clk 0:00:56]} 20. Nxd4 {[%clk 0:01:37]}  Qxd4 {[%clk 0:00:55]} 21. Rad1 {[%clk 0:01:36]}  Qc5 {[%clk 0:00:53]} 22. h4 {[%clk 0:01:33]}  Ne7 {[%clk 0:00:48]} 23. Nd6 {[%clk 0:01:20]}  Nd5 {[%clk 0:00:47]} 24. Qc4 {[%clk 0:01:04]}  Bb6 {[%clk 0:00:29]} 25. Qxc5 {[%clk 0:00:54]}  Bxc5 {[%clk 0:00:29]} 26. Ne4 {[%clk 0:00:53]}  Ba7 {[%clk 0:00:27]} 27. Rc1 {[%clk 0:00:52]}  Rac8 {[%clk 0:00:27]} 28. Nd6 {[%clk 0:00:53]}  Rxc1 {[%clk 0:00:24]} 29. Rxc1 {[%clk 0:00:53]}  Nc3 {[%clk 0:00:23]} 30. Rc2 {[%clk 0:00:52]}  Rd8 {[%clk 0:00:22]} 31. Kf1 {[%clk 0:00:49]}  Bc5 {[%clk 0:00:22]} 32. Rd2 {[%clk 0:00:47]}  f6 {[%clk 0:00:18]} 33. f4 {[%clk 0:00:46]}  fxe5 {[%clk 0:00:16]} 34. fxe5 {[%clk 0:00:47]}  Kf8 {[%clk 0:00:16]} 35. Rd3 {[%clk 0:00:32]}  Ke7 {[%clk 0:00:14]} 36. h5 {[%clk 0:00:32]}  Nd5 {[%clk 0:00:12]} 37. Bh4+ {[%clk 0:00:31]}  Kd7 {[%clk 0:00:11]} 38. Bxd8 {[%clk 0:00:29]}  Kxd8 {[%clk 0:00:11]} 39. Nb7+ {[%clk 0:00:28]}  Kc7 {[%clk 0:00:00]} 40. Nxc5 {[%clk 0:00:29]} 1-0

[Event "January 2 Late 2024"]
[Site "https://www.chess.com"]
[Date "2024.01.02"]
[Round "3"]
[White "Pichot, Alan"]
[Black "Nihal Sarin"]
[Result "0-1"]
[Board "2"]
[TimeControl "180+1"]
[WhiteFideId "110973"]
[BlackFideId "25092340"]
[WhiteElo "2812"]
[BlackElo "3210"]
[WhiteTeam "ESP"]
[BlackTeam "IND"]
[WhiteClock "0:00:12"]
[BlackClock "0:00:30"]

1. e4 {[%clk 0:03:00]}  c5 {[%clk 0:02:59]} 2. Nf3 {[%clk 0:03:00]}  d6 {[%clk 0:03:00]} 3. d4 {[%clk 0:02:59]}  cxd4 {[%clk 0:03:01]} 4. Nxd4 {[%clk 0:03:00]}  Nf6 {[%clk 0:03:01]} 5. Nc3 {[%clk 0:03:01]}  a6 {[%clk 0:03:02]} 6. Bd3 {[%clk 0:03:02]}  Bd7 {[%clk 0:03:01]} 7. O-O {[%clk 0:02:57]}  Nc6 {[%clk 0:03:01]} 8. Nxc6 {[%clk 0:02:48]}  Bxc6 {[%clk 0:03:01]} 9. f4 {[%clk 0:02:43]}  e6 {[%clk 0:02:48]} 10. a4 {[%clk 0:02:42]}  Be7 {[%clk 0:02:46]} 11. a5 {[%clk 0:02:40]}  b5 {[%clk 0:02:43]} 12. axb6 {[%clk 0:02:38]}  Qxb6+ {[%clk 0:02:42]} 13. Kh1 {[%clk 0:02:38]}  O-O {[%clk 0:02:43]} 14. Qe2 {[%clk 0:02:36]}  a5 {[%clk 0:02:40]} 15. b3 {[%clk 0:02:19]}  Qb7 {[%clk 0:02:29]} 16. Bd2 {[%clk 0:02:16]}  Rfd8 {[%clk 0:02:17]} 17. Rae1 {[%clk 0:02:14]}  Re8 {[%clk 0:01:54]} 18. e5 {[%clk 0:02:13]}  Nd5 {[%clk 0:01:53]} 19. Ne4 {[%clk 0:02:09]}  Qc7 {[%clk 0:01:41]} 20. Qh5 {[%clk 0:02:00]}  g6 {[%clk 0:01:41]} 21. Qh6 {[%clk 0:01:56]}  Bf8 {[%clk 0:01:25]} 22. exd6 {[%clk 0:01:56]}  Bxh6 {[%clk 0:01:18]} 23. dxc7 {[%clk 0:01:56]}  Rec8 {[%clk 0:01:18]} 24. Ra1 {[%clk 0:01:38]}  Nb4 {[%clk 0:01:18]} 25. Nf6+ {[%clk 0:00:36]}  Kh8 {[%clk 0:01:05]} 26. Ng4 {[%clk 0:00:37]}  Bg7 {[%clk 0:01:02]} 27. Ne5 {[%clk 0:00:37]}  Rxc7 {[%clk 0:00:46]} 28. Bxb4 {[%clk 0:00:22]}  axb4 {[%clk 0:00:47]} 29. Rxa8+ {[%clk 0:00:22]}  Bxa8 {[%clk 0:00:47]} 30. Ra1 {[%clk 0:00:23]}  Bd5 {[%clk 0:00:46]} 31. Ra4 {[%clk 0:00:19]}  Bxe5 {[%clk 0:00:35]} 32. fxe5 {[%clk 0:00:18]}  Bxb3 {[%clk 0:00:36]} 33. Rxb4 {[%clk 0:00:17]}  Bxc2 {[%clk 0:00:37]} 34. Rc4 {[%clk 0:00:12]}  Ra7 {[%clk 0:00:30]} 0-1

[Event "January 2 Late 2024"]
[Site "https://www.chess.com"]
[Date "2024.01.02"]
[Round "3"]
[White "Naroditsky, Daniel"]
[Black "Troff, Kayden"]
[Result "1/2-1/2"]
[Board "5"]
[TimeControl "180+1"]
[WhiteFideId "2026961"]
[BlackFideId "2047896"]
[WhiteElo "3154"]
[BlackElo "2786"]
[WhiteTeam "USA"]
[BlackTeam "USA"]
[WhiteClock "0:00:05"]
[BlackClock "0:00:13"]

1. d4 {[%clk 0:03:00]}  Nf6 {[%clk 0:02:58]} 2. Nc3 {[%clk 0:03:01]}  d5 {[%clk 0:02:55]} 3. Bf4 {[%clk 0:03:02]}  g6 {[%clk 0:02:51]} 4. e3 {[%clk 0:02:59]}  Bg7 {[%clk 0:02:51]} 5. h4 {[%clk 0:02:56]}  h6 {[%clk 0:02:44]} 6. Nf3 {[%clk 0:02:54]}  Bf5 {[%clk 0:02:43]} 7. Ne5 {[%clk 0:02:53]}  c6 {[%clk 0:02:38]} 8. g4 {[%clk 0:02:48]}  Be6 {[%clk 0:02:38]} 9. Be2 {[%clk 0:02:32]}  Nbd7 {[%clk 0:02:38]} 10. Rg1 {[%clk 0:02:28]}  Ne4 {[%clk 0:02:36]} 11. Nxe4 {[%clk 0:02:25]}  dxe4 {[%clk 0:02:36]} 12. Nxd7 {[%clk 0:02:26]}  Qxd7 {[%clk 0:02:36]} 13. Qd2 {[%clk 0:02:26]}  b5 {[%clk 0:02:23]} 14. Qa5 {[%clk 0:02:04]}  Qd8 {[%clk 0:02:17]} 15. Qxd8+ {[%clk 0:02:01]}  Rxd8 {[%clk 0:02:13]} 16. c3 {[%clk 0:01:54]}  O-O {[%clk 0:02:02]} 17. a4 {[%clk 0:01:50]}  a6 {[%clk 0:01:58]} 18. axb5 {[%clk 0:01:46]}  axb5 {[%clk 0:01:59]} 19. Kd2 {[%clk 0:01:46]}  Bd5 {[%clk 0:01:46]} 20. g5 {[%clk 0:01:12]}  h5 {[%clk 0:01:36]} 21. Ra7 {[%clk 0:01:05]}  e5 {[%clk 0:01:33]} 22. Bxe5 {[%clk 0:01:01]}  Bxe5 {[%clk 0:01:33]} 23. dxe5 {[%clk 0:01:02]}  Bb3+ {[%clk 0:01:31]} 24. Kc1 {[%clk 0:00:58]}  Rfe8 {[%clk 0:01:30]} 25. Bd1 {[%clk 0:00:56]}  Bd5 {[%clk 0:01:13]} 26. Bc2 {[%clk 0:00:48]}  Rxe5 {[%clk 0:01:13]} 27. b3 {[%clk 0:00:47]}  Be6 {[%clk 0:00:59]} 28. Rc7 {[%clk 0:00:47]}  Rc5 {[%clk 0:00:55]} 29. Kb2 {[%clk 0:00:31]}  Rd2 {[%clk 0:00:54]} 30. Rd1 {[%clk 0:00:28]}  Rxf2 {[%clk 0:00:28]} 31. Rd8+ {[%clk 0:00:28]}  Kg7 {[%clk 0:00:29]} 32. Rd6 {[%clk 0:00:07]}  Bg4 {[%clk 0:00:18]} 33. Rd8 {[%clk 0:00:02]}  Rd5 {[%clk 0:00:13]} 34. Rxd5 {[%clk 0:00:02]}  cxd5 {[%clk 0:00:14]} 35. Kc1 {[%clk 0:00:03]}  Rf1+ {[%clk 0:00:13]} 36. Kd2 {[%clk 0:00:03]}  Rf2+ {[%clk 0:00:14]} 37. Kc1 {[%clk 0:00:04]}  Rf1+ {[%clk 0:00:13]} 38. Kd2 {[%clk 0:00:04]}  Rf2+ {[%clk 0:00:13]} 39. Kc1 {[%clk 0:00:05]} 1/2-1/2